bitfinex-derivatives/quotes_SOLF0:USTF0_20260312
["timestamp","ask_amount","ask_price","bid_price","bid_amount"]
[1773286984743,4.03289748,85.275,85.231,3.30246505]
[1773286996560,4.03289748,85.275,85.24,2.56845408]
[1773286996757,4.03289748,85.275,85.241,3.13144626]
[1773287002068,4.03289748,85.275,85.231,3.15105305]
[1773287005971,3.99524174,85.272,85.231,3.15105305]
[1773287008567,3.99524174,85.269,85.221,3.15133633]
[1773287011474,2.56602826,85.27,85.221,3.15133633]
[1773287011475,3.99524174,85.263,85.221,3.15133633]
[1773287015580,3.99524174,85.259,85.221,3.15133633]
[1773287016272,3.99524174,85.249,85.19,2.56602826]
[1773287016478,3.99524174,85.239,85.192,3.12577186]
[1773287016978,3.99524174,85.229,85.184,39.98]
[1773287017477,3.99524174,85.229,85.185,3.1240826]
[1773287018177,3.99524174,85.219,85.173,3.1240826]
[1773287018373,2.56602826,85.22,85.173,3.1240826]
[1773287018374,3.99524174,85.209,85.173,3.1240826]
[1773287030080,3.99524174,85.209,85.179,3.07614095]
[1773287030781,3.99524174,85.209,85.171,40.0]
[1773287030980,3.99524174,85.209,85.179,40.56]
[1773287031380,6.44290908,85.2,85.178,279.77008661]
[1773287031680,3.87688082,85.2,85.17,40.6]
[1773287032181,3.87688082,85.2,85.17,43.64768872]
[1773287032382,3.87688082,85.2,85.171,3.04768872]
[1773287036483,3.87688082,85.199,85.17,40.6]
[1773287037782,3.87688082,85.197,85.17,40.6]
[1773287040185,3.87688082,85.197,85.17,22.894]
[1773287040380,3.87688082,85.195,85.17,22.894]
[1773287048894,3.87688082,85.206,85.171,3.08463004]
[1773287050596,2.56602826,85.2,85.149,3.08341079]
[1773287050895,3.87688082,85.199,85.151,3.08341079]
[1773287051290,3.87688082,85.197,85.151,3.08341079]
[1773287052597,3.87688082,85.192,85.151,3.08341079]
[1773287052993,3.87688082,85.189,85.151,3.08341079]
[1773287054396,3.87688082,85.187,85.151,3.08341079]
[1773287059805,3.87688082,85.187,85.145,41.62]
[1773287060112,3.87688082,85.187,85.145,44.76568671]
[1773287060302,3.87688082,85.187,85.146,3.14568446]
[1773287068416,3.87688082,85.187,85.145,41.62]
[1773287070419,3.87688082,85.187,85.145,44.77134722]
[1773287070612,3.87688082,85.187,85.146,3.15134722]
[1773287074419,3.84361073,85.185,85.146,3.15134722]
[1773287074615,3.84361073,85.185,85.145,41.62]
[1773287075412,3.84361073,85.183,85.145,41.62]
[1773287076518,3.84361073,85.181,85.145,41.62]
[1773287077926,3.84361073,85.191,85.151,3.06566917]
[1773287093838,3.71569806,85.189,85.151,3.06566917]
[1773287099243,3.71569806,85.186,85.151,3.06566917]
[1773287104842,3.71569806,85.199,85.151,3.06566917]
[1773287105049,3.71569806,85.197,85.151,3.06566917]
[1773287105350,3.71569806,85.194,85.151,3.06566917]
[1773287105538,3.71569806,85.192,85.151,3.06566917]
[1773287105739,3.71569806,85.19,85.151,3.06566917]
[1773287107047,3.71569806,85.188,85.151,3.06566917]
[1773287111958,3.71569806,85.186,85.151,3.06566917]
[1773287115561,3.71569806,85.185,85.151,3.06566917]
[1773287121270,2.57190114,85.16,85.117,13.80754342]
[1773287123578,10.568,85.157,85.117,13.80754342]
[1773287124166,2.5738868,85.16,85.117,13.80754342]
[1773287124775,2.5738868,85.15,85.103,24.37140514]
[1773287124975,2.5738868,85.15,85.077,29.10174087]
[1773287124976,2.5738868,85.15,85.105,13.79740514]
[1773287134181,13.1428868,85.15,85.105,13.79740514]
[1773287137984,2.5738868,85.15,85.105,13.79740514]
[1773287139079,10.57,85.137,85.093,13.79175156]
[1773287139285,2.5738868,85.14,85.093,13.79175156]
[1773287139591,2.5738868,85.15,85.093,13.79175156]
[1773287140489,10.569,85.148,85.093,13.79175156]
[1773287141992,2.5738868,85.15,85.093,13.79175156]
[1773287143591,10.569,85.147,85.093,13.79175156]
[1773287144494,10.57,85.138,85.093,13.79175156]
[1773287149901,10.569,85.147,85.093,13.79175156]
[1773287150598,2.5738868,85.15,85.093,13.79175156]
[1773287152600,10.569,85.147,85.101,13.82040269]
[1773287153800,10.568,85.158,85.111,13.81886935]
[1773287154401,2.5738868,85.17,85.111,13.81886935]
[1773287154402,10.566,85.167,85.111,13.81886935]
[1773287158006,9.62134834,85.166,85.111,13.81886935]
[1773287158208,10.567,85.164,85.111,13.81886935]
[1773287158606,2.5738868,85.17,85.111,13.81886935]
[1773287158607,2.5738868,85.16,85.111,13.81886935]
[1773287159209,9.62646717,85.159,85.111,13.81886935]
[1773287159404,2.5738868,85.16,85.111,13.81886935]
[1773287159611,9.62646199,85.159,85.111,13.81886935]
[1773287159909,2.5738868,85.16,85.111,13.81886935]
[1773287160105,9.62646199,85.159,85.111,13.81886935]
[1773287160303,9.62646199,85.158,85.111,13.81886935]
[1773287160509,10.568,85.155,85.111,13.81886935]
[1773287161111,2.5738868,85.16,85.111,13.81886935]
[1773287161311,9.63166295,85.159,85.111,13.81886935]
[1773287161605,2.5738868,85.16,85.111,13.81886935]
[1773287162910,10.568,85.157,85.111,13.81886935]
[1773287164807,10.567,85.167,85.121,13.82197298]
[1773287165009,2.5738868,85.19,85.131,13.82197298]
[1773287165209,9.64184443,85.189,85.131,13.82197298]
[1773287165408,9.64184443,85.188,85.131,13.82197298]
[1773287165710,9.64184443,85.187,85.131,13.82197298]
[1773287165912,9.64184443,85.186,85.131,13.82197298]
[1773287166112,2.5738868,85.18,85.131,13.82197298]
[1773287166408,10.565,85.176,85.131,13.82197298]
[1773287166613,9.64184443,85.175,85.131,13.82197298]
[1773287166913,9.64184443,85.174,85.131,13.82197298]
[1773287167108,9.64184443,85.173,85.11,13.76284674]
[1773287167316,2.5738868,85.16,85.11,13.76284674]
[1773287167504,9.64184443,85.159,85.11,13.76284674]
[1773287167709,9.64184443,85.158,85.11,13.76284674]
[1773287167910,9.64184443,85.157,85.11,13.76284674]
[1773287168109,2.5738868,85.16,85.11,13.76284674]
[1773287168304,10.568,85.154,85.11,13.76284674]
[1773287170415,10.567,85.164,85.11,16.33673354]
[1773287171115,9.64939537,85.163,85.09,13.54235213]
[1773287171408,2.5738868,85.13,85.09,13.54235213]
[1773287171604,2.5738868,85.1,85.04,2.5738868]
[1773287171807,2.5738868,85.09,85.031,11.85919428]
[1773287172009,2.5738868,85.09,85.03,2.5738868]
[1773287172516,2.5738868,85.1,85.04,2.5738868]
[1773287173210,10.573,85.111,85.04,2.5738868]
[1773287173515,2.5738868,85.1,85.041,6.69618843]
[1773287175715,2.5738868,85.11,85.051,6.65211028]
[1773287179719,10.574,85.109,85.051,6.65211028]
[1773287180523,2.5738868,85.1,85.051,6.65211028]
[1773287180718,2.5738868,85.11,85.052,6.652375]
[1773287181018,13.1458868,85.12,85.061,6.652375]
[1773287181221,10.572,85.12,85.071,6.652375]
[1773287181518,2.5738868,85.1,85.059,6.62922014]
[1773287183621,2.57707658,85.1,85.059,6.62922014]
[1773287185021,10.574,85.108,85.059,6.62922014]
[1773287185221,2.57707658,85.1,85.059,6.62922014]
[1773287187520,13.15207658,85.1,85.059,6.62922014]
[1773287187921,10.575,85.1,85.059,6.62922014]
[1773287188115,13.15207658,85.1,85.059,6.62922014]
[1773287188315,13.15207658,85.1,85.018,39.22]
[1773287188316,164.45,85.128,85.021,6.65769612]
[1773287188521,2.57707658,85.08,85.021,6.65769612]
[1773287188920,10.578,85.078,85.021,6.65769612]
[1773287189120,2.57707658,85.07,85.021,6.65769612]
[1773287189317,2.57707658,85.06,85.021,6.65769612]
[1773287189520,2.57707658,85.07,85.021,6.65769612]
[1773287189721,2.57707658,85.08,85.021,6.65769612]
[1773287190320,10.579,85.07,85.021,6.65769612]
[1773287190522,13.15607658,85.07,85.021,6.65769612]
[1773287192617,10.579,85.07,85.021,6.65769612]
[1773287194422,13.15607658,85.07,85.021,6.65769612]
[1773287195831,1.5616658,85.029,84.985,0.00041486]
[1773287196036,1.5616658,85.028,84.985,0.00041486]
[1773287196228,10.584,85.027,84.985,0.00041486]
[1773287196724,1.5616658,85.028,84.985,0.00041486]
[1773287197929,1.5616658,85.028,84.991,3.90852387]
[1773287198230,1.58873774,85.049,84.991,3.90852387]
[1773287198631,1.58873774,85.049,84.993,3.90852387]
[1773287198826,1.58873774,85.049,85.001,3.90852387]
[1773287200328,180.69713072,85.059,85.011,3.90852387]
[1773287200526,1.37844375,85.058,85.011,3.90852387]
[1773287201735,1.3845285,85.079,85.021,4.07625448]
[1773287202529,2.57707658,85.03,84.985,0.00041486]
[1773287204334,1.38467677,85.039,84.985,0.00041486]
[1773287205525,3.94041351,85.03,84.985,0.00041486]
[1773287205726,1.36333693,85.029,84.985,0.00041486]
[1773287205932,36.96,85.067,84.985,0.00041486]
[1773287205933,1.36333693,85.019,84.985,0.00041486]
[1773287206633,2.57707658,85.03,84.985,0.00041486]
[1773287206835,1.36333693,85.031,84.985,0.00041486]
[1773287207233,2.57707658,85.04,84.985,0.00041486]
[1773287207436,2.57707658,85.04,84.991,4.07625448]
[1773287207637,1.45102418,85.029,84.985,0.00041486]
[1773287208732,1.45102418,85.027,84.985,0.00041486]
[1773287208930,1.45102418,85.019,84.985,0.00041486]
[1773287210533,2.57707658,85.03,84.985,0.00041486]
[1773287211034,1.27378135,85.029,84.985,0.00041486]
[1773287211543,1.27378135,85.029,84.987,3.70134257]
[1773287212539,1.27378135,85.029,84.985,0.00041486]
[1773287213136,1.27595608,85.024,84.985,0.00041486]
[1773287213532,3.84957957,85.02,84.985,0.00041486]
[1773287213742,1.27250299,85.019,84.985,0.00041486]
[1773287218656,10.585,85.016,84.985,0.00041486]
[1773287219053,1.2718157,85.015,84.985,0.00041486]
[1773287219958,11.86482635,84.981,84.927,3.70134257]
[1773287220155,2.57707658,84.97,84.927,3.70134257]
[1773287220354,1.27482635,84.979,84.927,3.70134257]
[1773287221154,2.57707658,84.97,84.927,3.70134257]
[1773287221348,3.89466743,84.97,84.927,3.70134257]
[1773287222155,1.31759085,84.969,84.927,3.70134257]
[1773287222456,1.31759085,84.969,84.911,3.70134257]
[1773287223659,1.33275496,84.959,84.911,3.70134257]
[1773287224861,1.33275496,84.939,84.888,3.70134257]
[1773287225047,164.716,84.991,84.888,3.70134257]
[1773287225048,1.33275496,84.929,84.888,3.70134257]
[1773287225355,1.33275496,84.929,84.872,3.70134257]
[1773287225560,1.33275496,84.929,84.88,2.57707658]
[1773287226053,1.33275496,84.929,84.881,3.70134257]
[1773287226257,1.27524547,84.944,84.891,3.70134257]
[1773287226656,1.27524547,84.944,84.9,2.57707658]
[1773287226851,1.27524547,84.909,84.84,3.70134257]
[1773287227060,1.27524547,84.899,84.841,3.70134257]
[1773287227460,1.27524547,84.899,84.851,3.70134257]
[1773287227661,2.57707658,84.91,84.851,3.70134257]
[1773287227862,3.82352629,84.91,84.851,3.70134257]
[1773287228064,195.72282409,84.919,84.871,3.70134257]
[1773287230661,197.06207996,84.919,84.871,3.70134257]
[1773287231762,1.40235284,84.918,84.871,3.70134257]
[1773287233667,1.40235284,84.918,84.815,3.70134257]
[1773287233970,195.72282409,84.919,84.815,3.70134257]
[1773287233971,1.49276514,84.879,84.815,3.70134257]
[1773287234164,1.49276514,84.877,84.815,3.70134257]
[1773287234366,2.57707658,84.85,84.815,3.70134257]
[1773287234674,2.57707658,84.85,84.791,3.70134257]
[1773287234970,2.57707658,84.85,84.801,3.70134257]
[1773287235765,1.49276514,84.859,84.801,3.70134257]
[1773287235966,10.601,84.891,84.805,3.70134257]
[1773287236171,1.52871675,84.874,84.805,3.70134257]
[1773287236560,1.52871675,84.874,84.82,3.70134257]
[1773287236967,1.52871675,84.899,84.82,3.70134257]
[1773287237976,1.52871675,84.899,84.839,3.70134257]
[1773287238273,164.715,84.991,84.839,3.70134257]
[1773287238274,1.43436624,84.915,84.839,3.70134257]
[1773287239466,1.43436624,84.915,84.861,3.70134257]
[1773287240673,1.39085536,84.932,84.864,3.78135875]
[1773287241671,1.39085536,84.932,84.867,3.78135875]
[1773287242775,1.39085536,84.932,84.87,3.78135875]
[1773287243873,1.39085536,84.932,84.816,35.2]
[1773287243874,1.47602483,84.929,84.854,3.78135875]
[1773287245273,1.47602483,84.891,84.822,3.78135875]
[1773287246575,1.47768049,84.885,84.822,3.78135875]
[1773287246977,1.47768049,84.883,84.824,3.78135875]
[1773287248377,1.47768049,84.883,84.825,10.609]
[1773287248576,1.47768049,84.883,84.826,3.78135875]
[1773287249077,10.602,84.882,84.826,3.78135875]
[1773287250279,1.47768049,84.883,84.828,3.78135875]
[1773287251378,1.5356195,84.899,84.836,3.78135875]
[1773287252476,1.5356195,84.899,84.839,3.78135875]
[1773287252677,1.5356195,84.894,84.839,3.78135875]
[1773287254481,1.54452497,84.891,84.839,3.78135875]
[1773287254989,1.54452497,84.891,84.843,3.78135875]
[1773287255377,185.969,84.956,84.843,3.78135875]
[1773287255378,1.54452497,84.908,84.843,3.78135875]
[1773287255879,1.54502098,84.922,84.863,3.78135875]
[1773287256473,1.54502098,84.922,84.864,3.78135875]
[1773287258583,1.54728298,84.92,84.864,3.78135875]
[1773287260486,1.57498106,84.916,84.864,3.78135875]
[1773287260683,1.57498106,84.916,84.813,11.79]
[1773287260684,1.57498106,84.869,84.782,3.78135875]
[1773287260885,1.57498106,84.869,84.764,3.78135875]
[1773287261086,1.57498106,84.814,84.761,3.78135875]
[1773287261685,1.57658075,84.809,84.716,3.84592992]
[1773287262479,10.612,84.803,84.73,3.84592992]
[1773287262786,1.57658075,84.802,84.73,3.84592992]
[1773287263284,1.57658075,84.795,84.73,3.84592992]
[1773287263886,1.47078027,84.791,84.73,3.84592992]
[1773287264486,1.47078027,84.809,84.732,3.84592992]
[1773287264886,1.47078027,84.826,84.732,3.84592992]
[1773287265388,1.47078027,84.826,84.748,3.84592992]
[1773287265687,1.34618101,84.821,84.748,3.84592992]
[1773287266786,10.61,84.82,84.748,3.84592992]
[1773287266989,1.34618101,84.819,84.748,3.84592992]
[1773287267691,1.48318584,84.817,84.748,3.84592992]
[1773287269394,10.611,84.813,84.748,3.84592992]
[1773287269794,1.48318584,84.817,84.748,3.84592992]
[1773287270495,1.54740022,84.833,84.763,3.76261378]
[1773287270993,1.54739305,84.831,84.763,3.76261378]
[1773287272392,10.609,84.828,84.763,3.76261378]
[1773287272593,1.57852519,84.827,84.763,3.76261378]
[1773287274493,1.57852519,84.827,84.766,3.76261378]
[1773287275194,12.18752519,84.827,84.766,3.76261378]
[1773287277994,10.609,84.823,84.766,3.76261378]
[1773287279598,36.98,84.844,84.768,3.76261378]
[1773287279599,10.608,84.836,84.768,3.76261378]
[1773287279798,1.60753498,84.835,84.768,3.76261378]
[1773287280201,1.60753498,84.831,84.768,3.76261378]
[1773287280699,1.60753498,84.829,84.768,3.76261378]
[1773287280997,1.60753498,84.818,84.768,3.76261378]
[1773287281294,1.60753498,84.809,84.701,3.76261378]
[1773287281495,1.56291243,84.807,84.701,3.76261378]
[1773287281894,1.56291243,84.786,84.724,3.76261378]
[1773287282199,1.56291243,84.769,84.681,3.76261378]
[1773287283303,1.56291243,84.769,84.704,3.76261378]
[1773287283692,10.615,84.778,84.704,3.76261378]
[1773287284000,10.615,84.778,84.669,2.05335174]
[1773287284001,1.42308401,84.785,84.714,3.76261378]
[1773287285500,1.42308401,84.785,84.727,3.76261378]
[1773287286796,1.41306643,84.819,84.727,3.76261378]
[1773287287194,10.61,84.816,84.758,3.76261378]
[1773287287398,1.47913704,84.815,84.758,3.76261378]
[1773287288195,1.47913704,84.804,84.743,3.76261378]
[1773287288796,1.47913704,84.799,84.743,3.76261378]
[1773287289596,6.46949821,84.8,84.743,3.76261378]
[1773287289597,1.47712544,84.791,84.743,3.76261378]
[1773287289802,1.47712544,84.791,84.72,3.76261378]
[1773287290305,1.47712544,84.791,84.738,10.62]
[1773287290499,1.47712544,84.791,84.739,3.76261378]
[1773287290697,1.47712544,84.809,84.739,3.76261378]
[1773287292511,1.47712544,84.809,84.741,3.76261378]
[1773287292905,10.611,84.808,84.748,3.76261378]
[1773287293207,1.46519022,84.807,84.748,3.76261378]
[1773287294408,10.611,84.806,84.748,3.76261378]
[1773287296304,1.46519022,84.807,84.75,3.76261378]
[1773287297513,10.613,84.798,84.75,3.76261378]
[1773287297911,1.46519022,84.807,84.751,3.76261378]
[1773287298607,1.46519022,84.807,84.754,3.76261378]
[1773287298808,10.61,84.817,84.754,3.76261378]
[1773287299712,10.61,84.817,84.759,3.76261378]
[1773287299913,10.608,84.832,84.759,3.76261378]
[1773287301309,10.608,84.832,84.74,6.46949821]
[1773287301310,10.608,84.832,84.769,10.616]
[1773287301511,10.608,84.832,84.77,3.95240683]
[1773287301906,10.608,84.832,84.773,3.95240683]
[1773287302207,1.51416716,84.838,84.773,3.95240683]
[1773287302413,1.55043677,84.855,84.773,3.95240683]
[1773287302910,1.55043677,84.855,84.741,35.39]
[1773287302911,1.55043677,84.779,84.685,3.95240683]
[1773287303103,165.05,84.819,84.685,3.95240683]
[1773287303104,6.46949821,84.76,84.685,3.95240683]
[1773287303615,10.617,84.758,84.696,3.95240683]
[1773287304113,6.46949821,84.74,84.679,3.95240683]
[1773287304610,1.56609019,84.743,84.679,3.95240683]
[1773287304814,6.46949821,84.73,84.63,6.46949821]
[1773287305014,1.56609019,84.743,84.631,35.39]
[1773287305309,1.56609019,84.743,84.648,10.631]
[1773287305310,10.621,84.727,84.648,10.631]
[1773287305509,3.82563248,84.726,84.648,10.631]
[1773287306310,10.622,84.721,84.648,10.631]
[1773287306517,3.82563248,84.72,84.636,10.633]
[1773287306912,3.82563248,84.72,84.637,3.95240683]
[1773287307912,3.82563248,84.709,84.639,3.95240683]
[1773287308611,3.82563248,84.689,84.621,3.95240683]
[1773287309613,10.626,84.687,84.621,3.95240683]
[1773287310015,3.82563248,84.706,84.621,3.95240683]
[1773287310614,3.82563248,84.706,84.647,3.95240683]
[1773287310815,3.82563248,84.722,84.647,3.95240683]
[1773287311320,14.44763248,84.72,84.65,3.95240683]
[1773287311719,3.82563248,84.719,84.65,3.95240683]
[1773287312019,10.623,84.716,84.65,3.95240683]
[1773287314322,3.82563248,84.736,84.652,3.95240683]
[1773287314614,3.82563248,84.736,84.661,3.95240683]
[1773287314820,10.62,84.734,84.665,3.95240683]
[1773287315019,3.82563248,84.736,84.665,3.95240683]
[1773287315419,3.82563248,84.736,84.678,3.95240683]
[1773287319323,3.82563248,84.736,84.685,3.95240683]
[1773287319521,10.619,84.748,84.685,3.95240683]
[1773287319923,14.44463248,84.748,84.685,3.95240683]
[1773287320124,3.82563248,84.747,84.685,3.95240683]
[1773287322929,3.75288845,84.744,84.685,3.95240683]
[1773287325219,3.75288845,84.744,84.687,3.85863632]
[1773287326329,3.75288845,84.744,84.688,10.626]
[1773287326627,3.75288845,84.744,84.689,3.85863632]
[1773287327420,3.75288845,84.763,84.701,3.85863632]
[1773287328434,3.75288845,84.763,84.713,3.85863632]
[1773287329529,3.75288845,84.763,84.702,10.624]
[1773287329833,3.75288845,84.763,84.703,3.85863632]
[1773287330430,3.79163176,84.761,84.703,3.85863632]
[1773287332835,3.79163176,84.759,84.703,3.85863632]
[1773287333028,3.79163176,84.759,84.692,10.626]
[1773287333435,10.618,84.757,84.694,10.625]
[1773287333735,3.79163176,84.756,84.695,3.90276181]
[1773287334335,3.79163176,84.747,84.695,3.90276181]
[1773287337747,10.619,84.746,84.695,3.90276181]
[1773287338840,3.79163176,84.747,84.695,3.90276181]
[1773287340249,10.618,84.757,84.697,3.90276181]
[1773287340541,3.79163176,84.762,84.697,3.90276181]
[1773287340948,9.66710574,84.798,84.697,3.90276181]
[1773287341150,3.79163176,84.797,84.697,3.90276181]
[1773287341451,3.79163176,84.797,84.711,3.90276181]
[1773287342343,3.79163176,84.794,84.738,14.52276181]
[1773287342745,3.79163176,84.794,84.739,3.90276181]
[1773287343353,3.79163176,84.794,84.742,10.619]
[1773287343849,3.79163176,84.806,84.743,3.90276181]
[1773287344052,3.79163176,84.806,84.746,3.90276181]
[1773287345156,3.79163176,84.806,84.749,3.90276181]
[1773287345561,3.79163176,84.806,84.735,3.90276181]
[1773287345759,3.79163176,84.793,84.735,3.90276181]
[1773287346661,3.79163176,84.826,84.761,3.90276181]
[1773287347354,3.79163176,84.824,84.731,3.90276181]
[1773287348257,3.79163176,84.799,84.691,3.90276181]
[1773287348553,10.7833415,84.836,84.691,3.90276181]
[1773287348554,3.79163176,84.779,84.691,3.90276181]
[1773287349355,3.79163176,84.778,84.715,3.90276181]
[1773287350960,3.79163176,84.771,84.715,3.90276181]
[1773287353968,3.79163176,84.766,84.715,3.90276181]
[1773287356362,3.79163176,84.759,84.686,3.90276181]
[1773287357367,3.79163176,84.756,84.688,3.90276181]
[1773287358768,3.79163176,84.754,84.688,3.90276181]
[1773287359464,3.79163176,84.754,84.689,3.90276181]
[1773287359669,3.79163176,84.767,84.689,3.90276181]
[1773287360274,3.93365992,84.699,84.622,3.98164604]
[1773287361070,6.50342612,84.7,84.622,3.98164604]
[1773287361071,3.93365992,84.691,84.622,3.98164604]
[1773287362469,10.627,84.684,84.622,3.98164604]
[1773287362771,3.93365992,84.683,84.622,3.98164604]
[1773287366680,3.93365992,84.719,84.625,3.98164604]
[1773287367379,3.93365992,84.705,84.636,3.98164604]
[1773287368378,3.93365992,84.705,84.638,10.632]
[1773287368873,3.93365992,84.705,84.638,14.61364604]
[1773287369078,3.93365992,84.705,84.643,3.98164604]
[1773287369879,3.93365992,84.728,84.656,3.98164604]
[1773287370477,3.93365992,84.728,84.67,3.98164604]
[1773287371574,3.93365992,84.728,84.673,3.98164604]
[1773287372172,3.93365992,84.728,84.674,10.628]
[1773287372373,3.93365992,84.74,84.675,3.98164604]
[1773287373480,3.93365992,84.74,84.681,3.98164604]
[1773287374580,3.93365992,84.74,84.685,3.98164604]
[1773287374775,3.93365992,84.756,84.685,3.98164604]
[1773287374975,3.93365992,84.779,84.708,3.98164604]
[1773287375471,6.5051973,84.8,84.712,3.98164604]
[1773287375472,3.93365992,84.774,84.712,3.98164604]
[1773287376481,3.93365992,84.774,84.72,3.98164604]
[1773287378683,3.93365992,84.774,84.69,6.5051973]
[1773287378684,3.93365992,84.774,84.705,3.98164604]
[1773287379285,3.93365992,84.774,84.709,3.98164604]
[1773287380386,3.93365992,84.789,84.717,3.98164604]
[1773287380787,3.93365992,84.789,84.725,3.98164604]
[1773287381584,3.93365992,84.789,84.73,3.84720393]
[1773287383384,10.614,84.788,84.73,3.84720393]
[1773287383581,14.43630537,84.788,84.73,3.84720393]
[1773287383788,3.82230537,84.787,84.73,3.84720393]
[1773287387081,3.82230537,84.787,84.732,3.84720393]
[1773287387582,3.82230537,84.818,84.753,10.618]
[1773287387786,3.82230537,84.818,84.748,3.84720393]
[1773287388981,3.82230537,84.816,84.752,3.84720393]
[1773287390386,4.07523669,84.814,84.756,3.87944568]
[1773287391090,4.07523669,84.81,84.756,3.87944568]
[1773287391693,4.07523669,84.808,84.746,10.619]
[1773287392193,4.07523669,84.808,84.747,3.87944568]
[1773287392488,4.07523669,84.804,84.747,3.87944568]
[1773287393091,4.07523669,84.804,84.748,10.619]
[1773287393290,4.07523669,84.804,84.749,3.87944568]
[1773287394393,4.07523669,84.804,84.75,14.49744568]
[1773287394993,4.07523669,84.804,84.751,3.87944568]
[1773287395194,4.07523669,84.804,84.754,3.87944568]
[1773287395389,10.61,84.815,84.754,3.87944568]
[1773287395596,4.07523669,84.814,84.754,3.87944568]
[1773287396495,4.07523669,84.814,84.756,3.87944568]
[1773287398202,4.07523669,84.814,84.759,3.87944568]
[1773287399994,4.07523669,84.814,84.762,3.87944568]
[1773287400297,284.16768902,84.826,84.762,3.87944568]
[1773287400500,284.16768902,84.826,84.781,3.87944568]
[1773287400799,4.07523669,84.824,84.781,3.87944568]
[1773287400994,4.07523669,84.824,84.74,6.5051973]
[1773287400995,4.07523669,84.824,84.766,3.87944568]
[1773287401401,4.07523669,84.814,84.747,3.87944568]
[1773287401604,6.67149245,84.79,84.747,3.87944568]
[1773287401909,2.59625576,84.77,84.73,3.87944568]
[1773287402304,2.59625576,84.8,84.741,3.87944568]
[1773287402504,4.07523669,84.807,84.741,3.87944568]
[1773287402904,4.07523669,84.807,84.762,10.617]
[1773287403104,13.20625576,84.82,84.763,3.87944568]
[1773287403402,4.07523669,84.822,84.766,3.87944568]
[1773287403703,4.07523669,84.836,84.771,3.87944568]
[1773287404407,4.07523669,84.836,84.783,3.87944568]
[1773287405010,4.07523669,84.836,84.747,43.98]
[1773287405011,2.59625576,84.85,84.791,3.87944568]
[1773287405707,4.07523669,84.851,84.791,3.87944568]
[1773287405909,4.07523669,84.851,84.8,3.87944568]
[1773287406308,4.07523669,84.851,84.785,3.87944568]
[1773287406615,4.07523669,84.85,84.785,3.87944568]
[1773287407507,4.07523669,84.846,84.785,3.87944568]
[1773287408411,4.07523669,84.846,84.787,3.87944568]
[1773287409303,10.607,84.845,84.787,3.87944568]
[1773287409611,4.07523669,84.844,84.789,3.87944568]
[1773287411316,4.07523669,84.831,84.767,3.87944568]
[1773287412306,10.609,84.827,84.767,3.87944568]
[1773287412510,10.609,84.827,84.769,3.87944568]
[1773287413015,4.07523669,84.831,84.769,3.87944568]
[1773287414412,4.07523669,84.831,84.772,3.87944568]
[1773287414911,4.07523669,84.831,84.776,10.615]
[1773287415115,4.07523669,84.831,84.777,3.87944568]
[1773287415710,4.07523669,84.829,84.777,3.87944568]
[1773287417411,4.07523669,84.827,84.777,3.87944568]
[1773287418309,10.609,84.826,84.777,3.87944568]
[1773287419613,4.07523669,84.827,84.777,3.87944568]
[1773287420108,4.08445068,84.789,84.72,3.69292235]
[1773287420409,4.08445068,84.777,84.72,3.69292235]
[1773287422414,6.48089644,84.79,84.725,3.69292235]
[1773287422415,10.56534712,84.79,84.725,3.69292235]
[1773287422619,4.08445068,84.789,84.725,3.69292235]
[1773287422814,4.08445068,84.789,84.729,3.69292235]
[1773287424218,4.08445068,84.789,84.733,3.69292235]
[1773287424518,4.08445068,84.808,84.747,3.69292235]
[1773287425412,4.08445068,84.807,84.75,3.69292235]
[1773287426615,4.08445068,84.807,84.71,6.48089644]
[1773287426616,4.08445068,84.807,84.734,3.69292235]
[1773287426811,10.613,84.796,84.734,3.69292235]
[1773287427018,4.08445068,84.795,84.734,3.69292235]
[1773287427411,4.08445068,84.795,84.736,3.69292235]
[1773287427615,2.59545633,84.8,84.741,3.69292235]
[1773287427816,6.67990701,84.81,84.751,3.69292235]
[1773287429020,6.67990701,84.81,84.717,11.79]
[1773287429021,2.59545633,84.82,84.761,3.69292235]
[1773287429619,2.59428067,84.82,84.761,3.69292235]
[1773287430221,2.59428067,84.81,84.761,3.69292235]
[1773287430416,2.59428067,84.81,84.768,10.616]
[1773287431623,2.59428067,84.81,84.768,14.30892235]
[1773287431825,2.59428067,84.81,84.773,3.69292235]
[1773287432026,2.59428067,84.81,84.751,3.69292235]
[1773287433426,2.59428067,84.81,84.763,3.69292235]
[1773287434820,10.609,84.828,84.772,3.69292235]
[1773287435221,37.04,84.857,84.751,3.69292235]
[1773287435222,2.59428067,84.81,84.751,3.69292235]
[1773287435432,2.59428067,84.8,84.751,3.69292235]
[1773287435926,2.59428067,84.79,84.751,3.69292235]
[1773287436323,4.08445068,84.789,84.736,3.69292235]
[1773287436529,2.59428067,84.78,84.736,3.69292235]
[1773287437533,4.08445068,84.789,84.736,3.69292235]